bitfinex/quotes_ETHUSD_20250611
["timestamp","ask_amount","ask_price","bid_price","bid_amount"]
[1749654501892,0.55,2840.5,2839.3,1.38175579]
[1749654502047,0.55,2840.5,2839.1,0.04]
[1749654502048,10.0,2839.4,2839.1,0.04]
[1749654502249,10.0,2839.2,2837.1,0.04]
[1749654502490,10.0,2838.4,2837.1,0.04]
[1749654502687,3.05670219,2838.3,2837.1,0.04]
[1749654502851,4.5996,2838.2,2837.1,0.04]
[1749654503050,0.7846,2837.2,2837.1,0.04]
[1749654503789,0.7846,2837.2,2835.2,0.9114]
[1749654503790,10.0,2836.9,2835.2,0.9114]
[1749654503993,0.9637,2836.5,2834.9,1.048]
[1749654504146,10.0,2836.2,2834.9,1.048]
[1749654504449,12.07884787,2836.2,2834.9,1.048]
[1749654504650,0.29399395,2836.1,2834.4,0.00895663]
[1749654504851,0.29399395,2836.1,2834.2,4.8055]
[1749654505284,1.093,2836.0,2834.2,0.9185]
[1749654505494,0.29399395,2835.9,2834.2,0.9185]
[1749654505682,10.0,2835.4,2834.1,0.04]
[1749654505886,10.9605,2835.2,2834.1,0.04]
[1749654506086,0.29399395,2835.1,2834.1,0.04]
[1749654506491,0.55,2835.0,2834.1,0.04]
[1749654507024,0.29399395,2834.9,2834.1,0.04]
[1749654507778,0.29399395,2834.9,2834.2,1.004]
[1749654508181,0.29399395,2834.9,2834.1,0.04]
[1749654508415,0.29399395,2834.9,2834.2,10.0]
[1749654509184,0.29399395,2834.9,2834.1,1.278]
[1749654509628,0.29399395,2834.9,2834.2,10.0]
[1749654509913,0.9342,2835.7,2834.3,0.55]
[1749654510118,0.29399395,2835.6,2834.5,0.55]
[1749654510291,0.29399395,2835.6,2835.5,3.52671486]
[1749654510490,0.18728359,2838.4,2835.6,11.4874]
[1749654510690,0.9189,2837.7,2835.9,0.55]
[1749654510916,0.9189,2837.7,2835.9,4.115]
[1749654511213,0.9189,2837.7,2836.1,10.0]
[1749654511415,0.85223423,2837.2,2836.1,10.0]
[1749654511627,0.85223423,2837.2,2835.9,4.115]
[1749654511783,0.176,2835.9,2835.6,0.9374]
[1749654511978,0.176,2835.9,2835.3,4.114]
[1749654512213,0.176,2835.7,2835.4,0.4114]
[1749654512625,0.176,2835.7,2835.4,10.0]
[1749654512792,0.176,2835.4,2835.3,14.114]
[1749654513893,0.176,2835.4,2834.4,2.1765]
[1749654514229,0.176,2834.7,2834.5,0.29429819]
[1749654514425,0.176,2834.7,2834.4,5.35]
[1749654514633,0.176,2834.4,2834.3,0.76648195]
[1749654516020,0.9064,2835.4,2834.3,0.76648195]
[1749654516021,0.9064,2835.4,2834.3,10.76648195]
[1749654516221,0.9409,2836.0,2834.7,13.52771016]
[1749654516423,0.9409,2836.8,2835.0,10.0]
[1749654516586,0.176,2835.8,2835.2,10.176]
[1749654516924,0.176,2835.3,2835.2,10.0]
[1749654517797,0.176,2835.3,2834.8,10.0]
[1749654517997,2.1799,2836.8,2834.8,10.0]
[1749654517998,0.9409,2836.8,2835.2,4.108]
[1749654518186,0.176,2835.5,2835.2,7.63499374]
[1749654518521,0.9409,2836.8,2835.5,10.0]
[1749654518823,0.176,2835.9,2835.4,0.726]
[1749654518983,0.9409,2836.8,2835.3,10.76349937]
[1749654519189,0.176,2835.5,2835.3,10.76349937]
[1749654519499,0.176,2836.1,2835.9,3.52621742]
[1749654519699,1.29667312,2836.8,2836.1,10.0]
[1749654519700,0.35577312,2836.8,2836.1,10.0]
[1749654519887,0.176,2836.4,2836.1,10.0]
[1749654520220,0.176,2836.4,2836.0,4.11]
[1749654520221,0.176,2836.4,2836.3,13.52572012]
[1749654520387,0.04,2836.9,2835.8,4.109]
[1749654520388,0.176,2836.3,2835.8,4.109]
[1749654520588,0.176,2836.3,2836.1,3.52596875]
[1749654520792,0.176,2836.5,2836.0,10.176]
[1749654521123,0.04,2836.9,2835.6,9.92896081]
[1749654521124,0.04,2836.9,2835.6,0.8633]
[1749654521326,0.176,2835.8,2835.6,14.111]
[1749654521522,0.04,2836.9,2835.7,10.0]
[1749654521827,0.176,2836.0,2835.8,10.0]
[1749654522000,0.04,2836.9,2835.9,1.35264397]
[1749654522197,0.176,2836.3,2835.9,1.35264397]
[1749654522599,0.176,2836.3,2836.0,10.0]
[1749654522928,0.04,2836.9,2836.2,10.0]
[1749654523305,0.176,2836.3,2836.0,10.9407]
[1749654523494,0.176,2836.3,2836.2,10.0]
[1749654523826,0.176,2836.5,2836.2,10.0]
[1749654524000,0.04,2836.9,2836.4,10.0]
[1749654524200,0.176,2836.5,2836.0,12.4875344]
[1749654524529,0.176,2836.5,2836.2,13.52581755]
[1749654524732,0.176,2836.5,2836.2,10.0]
[1749654527127,0.176,2835.9,2835.8,15.339]
[1749654527623,0.176,2835.9,2835.8,16.8729]
[1749654527829,0.176,2835.9,2834.9,0.9281]
[1749654528137,0.176,2835.5,2835.0,4.097]
[1749654528323,0.176,2835.2,2835.0,4.097]
[1749654528527,0.176,2835.5,2835.0,4.097]
[1749654528719,0.176,2835.5,2835.1,10.0]
[1749654528916,0.8664,2836.3,2835.1,10.0]
[1749654529119,0.176,2835.7,2835.1,10.176]
[1749654529348,0.8664,2836.3,2835.3,10.0]
[1749654529548,0.176,2835.4,2835.3,10.0]
[1749654529848,0.8736,2836.8,2835.6,10.0]
[1749654530003,0.8736,2836.8,2835.7,4.096]
[1749654530208,0.176,2835.7,2835.4,3.52674249]
[1749654530404,0.176,2835.8,2835.5,10.0]
[1749654530618,0.176,2835.8,2835.5,13.52664503]
[1749654530907,0.176,2835.8,2835.4,14.28915443]
[1749654531242,0.8736,2836.8,2835.6,10.55]
[1749654531444,0.176,2836.4,2835.9,0.176]
[1749654531602,0.176,2836.4,2835.8,0.55]
[1749654531603,0.38781383,2836.9,2836.2,10.0]
[1749654531808,0.176,2836.6,2836.4,10.0]
[1749654533151,0.38781383,2836.9,2836.5,4.091]
[1749654533310,0.38781383,2836.9,2836.6,4.091]
[1749654533955,0.04,2836.9,2836.6,4.091]
[1749654534135,0.176,2836.8,2836.6,4.091]
[1749654535057,0.04,2836.9,2836.7,11.4284]
[1749654535232,0.04,2836.9,2836.7,10.8784]
[1749654536056,0.04,2836.9,2836.8,20.3095027]
[1749654536258,0.04,2836.9,2836.8,17.1077437]
[1749654536464,0.04,2836.9,2836.8,19.42422202]
[1749654536771,0.04,2836.9,2836.8,10.0]
[1749654537346,0.04,2836.9,2836.8,4.081]
[1749654537655,0.04,2836.9,2836.3,1.239]
[1749654537847,0.04,2836.9,2836.4,4.084]
[1749654538175,0.04,2836.9,2835.8,0.9073]
[1749654538360,0.04,2836.9,2835.9,4.082]
[1749654539485,0.04,2836.9,2836.8,13.5250987]
[1749654539686,0.04,2836.9,2836.8,10.0]
[1749654540186,0.04,2836.9,2836.8,14.078]
[1749654540542,0.04,2836.9,2836.8,4.078]
[1749654540902,0.04,2836.9,2836.8,4.4858]
[1749654541057,0.04,2836.9,2836.8,10.0]
[1749654541387,0.04,2836.9,2836.8,14.076]
[1749654541891,0.04,2836.9,2836.8,18.1510987]
[1749654542241,0.04,2836.9,2836.8,14.626]
[1749654542584,0.04,2836.9,2836.8,14.073]
[1749654542990,0.04,2836.9,2835.6,2.72762847]
[1749654543281,0.04,2836.9,2836.0,10.75451021]
[1749654543484,0.04,2836.9,2836.2,13.52581271]
[1749654543657,0.04,2836.9,2836.4,10.0]
[1749654543868,0.04,2836.9,2836.0,0.75451021]
[1749654544062,0.04,2836.9,2836.1,4.071]
[1749654544596,0.04,2836.9,2835.8,1.228]
[1749654544740,0.04,2836.9,2835.9,10.0]
[1749654545391,0.04,2836.9,2835.8,1.228]
[1749654545609,0.176,2835.9,2835.8,1.228]
[1749654545749,0.176,2835.9,2835.6,4.066]
[1749654546483,0.176,2835.9,2835.6,4.4726]
[1749654546647,0.176,2835.9,2835.8,10.0]
[1749654546993,0.9374,2836.5,2835.8,4.065]
[1749654547301,0.9374,2836.5,2835.6,0.76072698]
[1749654547302,0.9374,2836.5,2835.6,4.82472698]
[1749654547459,0.9374,2836.5,2835.6,0.76072698]
[1749654547670,0.9374,2836.5,2835.6,10.76072698]
[1749654548181,0.9374,2836.5,2835.6,12.24319968]
[1749654548689,0.95,2836.9,2835.7,13.45370159]
[1749654548991,0.95,2836.9,2835.9,0.55]
[1749654549158,0.04,2836.9,2836.3,10.0]
[1749654549358,0.04,2836.9,2836.5,10.0]
[1749654549589,0.04,2836.9,2836.5,11.4063]
[1749654550076,0.04,2836.9,2836.5,14.9316899]
[1749654550291,0.04,2836.9,2836.7,3.52515618]
[1749654550506,0.04,2836.9,2836.8,4.058]
[1749654550847,0.04,2836.9,2836.8,17.5830987]
[1749654551046,0.04,2836.9,2836.8,18.73227857]
[1749654551463,0.04,2836.9,2836.8,16.43217987]
[1749654551665,0.04,2836.9,2836.8,23.42627857]
[1749654551995,0.04,2836.9,2836.8,10.59917987]
[1749654552147,0.04,2836.9,2836.8,14.054]
[1749654553550,0.04,2836.9,2836.8,10.0]
[1749654555267,1.33901328,2836.9,2836.1,1.228]
[1749654555488,0.9948,2836.9,2836.2,4.048]
[1749654555649,0.9948,2836.9,2836.3,10.0]
[1749654555853,0.176,2836.6,2836.3,10.0]
[1749654556113,0.176,2836.6,2836.1,0.176]
[1749654556305,0.9948,2836.9,2836.2,4.048]
[1749654556605,0.9948,2836.9,2835.7,10.0]
[1749654556810,0.176,2836.1,2835.9,10.0]
[1749654556970,0.176,2836.2,2835.9,10.0]
[1749654557760,0.9948,2836.9,2835.6,1.98872698]
[1749654557961,0.176,2835.8,2835.6,1.98872698]
[1749654558395,1.35302544,2836.9,2835.8,10.0]
[1749654558555,1.35302544,2836.9,2835.6,0.76072698]
[1749654558754,0.176,2835.8,2835.7,14.045]
[1749654559883,0.8976,2836.6,2835.7,15.87822434]
[1749654560087,0.176,2836.1,2835.7,14.045]
[1749654560397,0.8976,2836.6,2835.8,4.042]
[1749654560758,0.8976,2836.6,2835.8,17.56826223]
[1749654560759,0.176,2836.0,2835.8,17.56826223]
[1749654561000,0.176,2836.2,2835.8,17.56826223]
[1749654561175,0.176,2836.2,2835.9,1.75682622]
[1749654561380,0.04,2836.9,2836.1,0.55]
[1749654561580,0.04,2836.9,2836.6,10.0]
[1749654561794,0.176,2836.7,2836.2,17.86434902]
[1749654561988,0.176,2836.7,2836.2,19.59547537]
[1749654562189,0.176,2836.7,2836.3,4.039]
[1749654562396,0.04,2836.9,2836.5,10.0]
[1749654562713,0.04,2836.9,2836.7,10.0]
[1749654562914,0.04,2836.9,2836.7,14.036]
[1749654563519,0.216,2836.9,2836.7,14.036]
[1749654564704,0.216,2836.9,2836.7,10.0]
[1749654564906,0.216,2836.9,2836.8,4.03]
[1749654565125,0.04,2836.9,2836.4,10.0]
[1749654565284,0.176,2836.7,2836.3,10.0]
[1749654565614,0.9009,2836.8,2835.7,2.72762847]
[1749654565771,0.9009,2836.8,2835.6,5.09886257]
[1749654565772,0.176,2836.1,2835.6,0.93672698]
[1749654565977,0.9009,2836.8,2835.7,4.028]
[1749654566280,0.9009,2836.8,2835.6,0.76072698]
[1749654566482,0.55,2836.5,2835.6,0.76072698]
[1749654566697,0.55,2836.4,2835.6,0.76072698]
[1749654568234,0.8942,2836.3,2835.6,0.76072698]
[1749654568579,0.176,2835.6,2835.3,10.0]
[1749654568807,0.8707,2836.1,2835.3,10.0]
[1749654568970,0.55,2836.0,2834.6,9.126]
[1749654569173,1.0656,2835.2,2834.6,9.126]
[1749654569407,0.8896,2835.2,2834.7,4.022]
[1749654570411,0.176,2834.7,2834.6,14.019]
[1749654570613,0.8896,2835.2,2834.6,4.018]
[1749654570820,0.8896,2835.2,2834.6,10.0]
[1749654571314,0.176,2834.6,2834.5,1.43128021]
[1749654571517,1.0691,2834.6,2834.5,0.66666667]
[1749654572116,1.0691,2834.6,2834.1,0.04]
[1749654572280,0.8931,2834.6,2834.1,0.04]
[1749654572939,0.55,2834.3,2834.1,0.04]
[1749654573740,1.4541,2834.2,2834.1,0.04]
[1749654573942,0.75041,2834.2,2834.1,0.04]
[1749654574144,1.4853,2834.2,2834.1,0.04]
[1749654574295,0.9353,2834.2,2834.1,0.04]
[1749654574702,11.4217,2834.1,2833.2,0.155359]
[1749654574903,0.55,2833.9,2833.2,0.155359]
[1749654575351,0.8717,2834.0,2833.2,0.155359]
[1749654576757,0.55,2833.5,2833.2,0.155359]
[1749654576900,0.866,2833.4,2833.2,0.155359]
[1749654577238,0.55,2833.3,2833.2,0.155359]
[1749654577470,1.416,2833.3,2833.2,0.155359]
[1749654578254,0.866,2833.3,2833.2,0.155359]
[1749654579221,0.55,2833.2,2832.1,0.04]
[1749654579518,0.55,2833.0,2832.1,0.04]
[1749654579957,0.9256,2833.0,2832.1,0.04]
[1749654580101,0.55,2832.4,2832.1,0.04]
[1749654580303,0.55,2832.0,2831.1,0.04]
[1749654580556,0.9256,2831.9,2831.1,0.04]
[1749654581380,0.9256,2831.3,2830.1,0.04]
[1749654581696,0.9256,2831.3,2830.1,0.38600843]
[1749654581838,0.9256,2831.3,2830.1,0.04]
[1749654582272,0.9256,2831.3,2830.1,4.92384411]
[1749654582485,0.9256,2831.3,2830.1,1.044]
[1749654582686,0.9256,2831.3,2830.1,0.04]
[1749654582858,0.176,2830.4,2830.1,10.04]
[1749654583058,0.176,2830.4,2830.2,0.9484]
[1749654583351,10.0,2833.0,2830.3,13.53319436]
[1749654583662,10.0,2833.0,2830.2,11.1244]
[1749654583663,0.176,2830.7,2830.2,11.1244]
[1749654583861,0.176,2830.7,2830.5,10.0]
[1749654584070,0.8672,2831.7,2830.3,6.62141985]
[1749654584266,0.55,2831.6,2830.2,0.9484]
[1749654584465,0.55,2831.6,2830.1,0.39672972]
[1749654584466,0.176,2830.2,2830.1,0.04]
[1749654588647,0.8571,2831.4,2830.5,3.53293786]
[1749654588854,1.192,2832.7,2830.7,3.53262672]
[1749654588855,0.8571,2832.5,2830.7,3.53262672]
[1749654589055,0.8571,2832.5,2830.8,0.35326267]
[1749654589056,0.176,2830.9,2830.8,0.35326267]
[1749654589254,0.8571,2831.6,2830.4,10.0]
[1749654589952,0.176,2830.5,2830.4,10.0]
[1749654590771,0.176,2830.7,2830.4,10.0]
[1749654590984,0.176,2830.7,2830.5,1.76061339]
[1749654591395,0.8674,2832.0,2830.6,13.53281989]
[1749654591605,0.176,2830.9,2830.6,10.0]
[1749654591759,0.176,2830.9,2830.5,11.76061339]
[1749654591957,0.176,2830.9,2830.7,10.0]
[1749654592193,0.176,2830.9,2830.7,1.52933635]
[1749654592520,0.8674,2832.0,2830.3,0.35715923]
[1749654592521,0.176,2830.7,2830.3,0.35715923]
[1749654592695,0.176,2830.7,2830.6,4.063]
[1749654593009,0.176,2830.3,2830.1,0.9109]
[1749654593765,0.176,2830.3,2830.1,10.9109]
[1749654594781,0.9184,2831.0,2830.1,0.04]
[1749654596280,0.55,2830.9,2830.1,0.04]
[1749654598874,0.8718,2830.2,2830.1,0.04]
[1749654599198,1.4218,2830.2,2830.1,0.04]
[1749654600297,1.4698,2830.1,2828.5,0.66666667]
[1749654600483,1.4698,2829.2,2827.2,0.8852]
[1749654600811,0.55,2828.8,2827.2,0.8852]
[1749654601109,0.55,2828.4,2826.1,0.04]
[1749654601426,0.55,2827.5,2826.1,0.04]
[1749654601706,0.55,2827.5,2827.1,0.02841]
[1749654601909,0.9046,2827.6,2827.1,0.02841]
[1749654602475,10.9191,2828.7,2827.1,0.02841]
[1749654602687,0.9138,2828.4,2827.1,0.02841]
[1749654602906,0.55,2828.3,2827.1,0.02841]
[1749654603311,11.4638,2828.1,2827.1,0.02841]
[1749654603613,10.55,2828.1,2827.1,0.02841]
[1749654603913,0.55,2827.7,2827.1,0.02841]
[1749654604118,0.010297,2827.1,2826.1,0.9826]
[1749654605812,0.010297,2827.1,2826.2,12.08214113]
[1749654605999,0.010297,2827.1,2827.0,14.47001871]
[1749654606316,0.010297,2827.1,2827.0,28.59593071]
[1749654606516,0.010297,2827.1,2827.0,24.51818171]
[1749654606678,0.010297,2827.1,2827.0,19.14555171]
[1749654606878,0.04,2828.9,2827.9,0.9033]
[1749654607110,0.04,2828.9,2828.0,1.321]
[1749654607372,0.04,2828.9,2828.1,0.55]
[1749654607573,0.04,2828.9,2828.1,3.75833716]
[1749654607912,0.176,2828.4,2828.3,13.53569281]
[1749654608073,0.176,2828.4,2828.3,10.0]
[1749654608278,0.04,2828.9,2828.3,1.022243]
[1749654608470,0.04,2828.9,2828.1,0.22243]
[1749654608671,0.176,2828.3,2828.1,0.22243]
[1749654609212,0.176,2828.3,2827.9,0.9033]
[1749654609417,0.04,2828.9,2827.9,0.9033]
[1749654609418,0.1768,2828.0,2827.9,0.9033]
[1749654609620,0.04,2828.9,2827.9,0.9033]
[1749654609914,0.176,2828.3,2827.9,0.9033]
[1749654610076,0.1768,2828.0,2827.9,0.9033]
[1749654610801,0.1768,2828.0,2827.4,10.0]
[1749654610802,0.1768,2828.0,2827.4,0.903]
[1749654610972,0.176,2828.1,2827.4,10.903]
[1749654611173,0.176,2828.1,2827.7,10.0]
[1749654611397,0.1768,2827.8,2827.5,5.589]
[1749654611600,0.1768,2827.8,2827.5,7.60956245]
[1749654611929,0.04,2828.9,2827.5,7.60956245]
[1749654611930,0.1768,2827.6,2827.5,1.321]
[1749654612090,0.1768,2827.6,2827.4,0.903]
[1749654612425,0.04,2828.9,2827.4,0.903]
[1749654612426,0.04,2828.9,2827.6,10.0]
[1749654612604,0.1768,2827.8,2827.7,13.53644304]
[1749654612799,0.04,2828.9,2827.8,10.0]
[1749654613134,0.04,2828.9,2828.2,20.9145]
[1749654613293,0.04,2828.9,2828.2,0.9145]
[1749654613626,0.04,2828.9,2828.2,5.1845]
[1749654613841,0.04,2828.9,2828.5,3.53542489]
[1749654614136,0.04,2828.9,2828.6,10.0]
[1749654614342,0.04,2828.9,2828.5,10.0]
[1749654614632,0.04,2828.9,2828.3,10.65055]
[1749654614803,0.04,2828.9,2828.4,0.83740257]
[1749654615192,0.04,2828.9,2828.3,0.65055]
[1749654615392,0.04,2828.9,2828.2,0.9145]
[1749654616127,0.04,2828.9,2827.7,0.8676]
[1749654616286,0.9479,2828.8,2827.7,0.8676]
[1749654616492,0.9479,2828.8,2827.3,2.1886]
[1749654616749,0.9479,2828.8,2827.4,10.0]
[1749654616901,0.9479,2828.8,2827.5,1.64506]
[1749654617743,0.55,2828.7,2827.3,0.8676]
[1749654617945,0.55,2828.7,2827.4,4.257]
[1749654618731,0.9479,2828.8,2827.4,4.256]
[1749654619140,0.55,2828.7,2827.5,10.0]
[1749654619637,0.9479,2828.8,2827.5,11.51236]
[1749654620193,0.9479,2828.8,2827.5,10.0]
[1749654621313,0.9479,2828.8,2827.7,10.0]
[1749654622012,0.04,2828.9,2828.3,3.53569191]
[1749654622227,0.04,2828.9,2828.8,4.42406787]
[1749654622428,0.04,2828.9,2828.8,14.86647466]
[1749654622728,0.04,2828.9,2828.8,15.41647466]
[1749654623235,0.04,2829.9,2828.8,15.41647466]
[1749654623236,0.04,2829.9,2828.9,10.0]
[1749654623400,0.04,2829.9,2829.7,0.8704]
[1749654623605,0.04,2829.9,2829.8,14.241]
[1749654624637,0.04,2829.9,2829.8,20.38849764]
[1749654625038,0.04,2829.9,2829.8,19.20131864]
[1749654625336,0.04,2829.9,2829.8,15.6675]
[1749654625538,0.04,2829.9,2829.8,22.41112374]
[1749654626238,0.04,2829.9,2829.8,26.33562174]
[1749654626441,0.04,2830.9,2830.6,4.40931989]
[1749654626741,0.04,2830.9,2830.8,23.34095679]
[1749654626941,0.04,2830.9,2830.8,24.66195679]
[1749654627140,0.04,2830.9,2830.8,15.727]
[1749654627438,0.04,2831.9,2831.3,0.55]
[1749654627641,0.04,2831.9,2831.1,0.55]
[1749654627826,0.04,2831.9,2831.3,0.55]
[1749654628138,0.04,2831.9,2831.3,10.0]
[1749654628312,0.04,2831.9,2831.0,10.9209]
[1749654628512,0.04,2831.9,2831.4,3.53174966]
[1749654628736,0.04,2831.9,2831.7,10.0]
[1749654628940,0.04,2831.9,2831.6,10.0]
[1749654629116,0.04,2831.9,2831.8,15.00222283]
[1749654629328,0.04,2831.9,2831.8,43.74425876]
[1749654629657,0.04,2831.9,2831.8,14.67405893]
[1749654629805,0.04,2831.9,2831.8,20.85001151]
[1749654630520,0.04,2831.9,2831.8,17.31868868]
[1749654630830,0.04,2831.9,2831.8,11.21568868]
[1749654631032,0.04,2831.9,2831.8,16.75968868]
[1749654631336,0.04,2831.9,2831.8,34.25629751]
[1749654631521,0.04,2831.9,2831.8,32.78895301]
[1749654631872,0.04,2832.9,2831.8,32.78895301]
[1749654631873,0.04,2832.9,2832.5,0.55]
[1749654632013,0.04,2833.9,2833.6,10.0]
[1749654632210,0.04,2833.9,2833.8,10.0]
[1749654632410,0.04,2833.9,2833.8,16.092]
[1749654632714,0.04,2833.9,2833.8,15.542]
[1749654632910,0.04,2833.9,2833.8,10.0]
[1749654633211,0.04,2833.9,2833.8,15.539]
[1749654633525,0.04,2833.9,2833.7,4.222]
[1749654633727,0.04,2833.9,2833.2,10.0]
[1749654634038,0.04,2833.9,2833.3,4.218]
[1749654634211,0.04,2833.9,2833.2,1.317]
[1749654634408,0.04,2833.9,2833.3,4.217]
[1749654634631,0.04,2833.9,2833.2,0.29464302]
[1749654634809,0.922,2833.7,2833.2,0.29464302]
[1749654635840,0.55,2833.6,2833.2,0.29464302]
[1749654636307,0.55,2833.4,2832.1,1.317]
[1749654636508,0.55,2833.2,2832.2,4.50674705]
[1749654636733,0.55,2833.0,2832.3,0.29473664]
[1749654637135,0.55,2832.6,2832.3,0.29473664]
[1749654637315,0.929,2832.7,2832.3,0.29473664]
[1749654638729,0.9518,2833.4,2832.4,4.206]
[1749654638926,0.9518,2833.4,2832.5,4.204]
[1749654639129,0.176,2832.6,2832.1,0.176]
[1749654639429,0.176,2832.6,2832.2,5.52]
[1749654639648,0.176,2832.6,2832.2,15.52]
[1749654639806,0.176,2832.6,2832.3,10.0]
[1749654640013,0.176,2832.6,2832.3,11.5696]
[1749654640248,0.176,2832.6,2832.3,11.86433664]
[1749654640411,0.176,2832.6,2832.3,15.39496949]
[1749654640614,0.176,2832.8,2832.4,0.8821]
[1749654640863,0.9518,2833.4,2832.5,10.0]
[1749654641018,0.176,2832.8,2832.5,10.0]
[1749654641435,0.176,2832.8,2832.6,4.195]
[1749654641909,0.9518,2833.4,2832.7,4.48569502]
[1749654642114,0.9518,2833.4,2832.8,0.29468462]
[1749654644024,0.9518,2833.4,2832.8,4.47868462]
[1749654644342,0.55,2833.3,2832.8,0.29468462]
[1749654644546,0.9039,2833.2,2832.8,0.29468462]
[1749654644731,0.55,2832.9,2832.8,0.29468462]
[1749654645083,0.55,2832.9,2831.8,4.184]
[1749654645084,0.176,2832.8,2831.8,4.184]
[1749654645234,0.75039,2832.9,2831.9,0.29477827]
[1749654645747,0.55,2832.7,2831.9,0.29477827]
[1749654645948,0.55,2832.5,2831.9,0.29477827]
[1749654646548,0.9245,2833.8,2832.0,4.178]
[1749654646850,0.3517719,2834.0,2832.1,4.182]
[1749654646851,0.176,2832.3,2832.1,4.182]
[1749654647218,0.176,2832.3,2832.2,10.4182]
[1749654647413,0.176,2832.3,2832.2,10.0]
[1749654647617,0.176,2832.3,2832.2,10.29474705]
[1749654648026,0.176,2832.5,2832.2,10.29474705]
[1749654648234,0.176,2832.5,2832.3,0.29473664]
[1749654649474,0.8837,2833.2,2832.3,0.29473664]
[1749654650178,0.55,2833.1,2832.3,0.29473664]
[1749654650547,9.0823865,2833.7,2832.3,0.29473664]
[1749654650548,0.55,2833.4,2832.3,0.29473664]
[1749654650749,0.55,2833.2,2832.3,0.29473664]
[1749654650962,0.9204,2833.1,2832.3,0.29473664]
[1749654651476,0.8844,2832.9,2832.3,0.29473664]
[1749654652063,0.55,2832.8,2832.3,0.29473664]
[1749654652264,0.55,2832.6,2832.3,0.29473664]
[1749654653184,0.55,2832.6,2831.1,0.04]
[1749654653185,0.55,2832.4,2831.1,0.04]
[1749654653338,0.55,2832.6,2831.1,0.04]
[1749654653543,0.55,2832.0,2831.1,0.04]
[1749654655158,0.9218,2832.1,2831.1,0.04]
[1749654655983,1.26871192,2832.1,2831.1,0.04]
[1749654656361,0.55,2832.0,2831.1,0.04]
[1749654658688,10.55,2832.0,2831.1,0.04]
[1749654658890,0.55,2831.8,2831.1,0.04]
[1749654659589,1.30897119,2831.9,2831.1,0.04]
[1749654659794,0.55,2832.0,2831.1,0.04]
[1749654659955,8.4475016,2832.0,2831.1,0.04]
[1749654660166,7.8975016,2831.2,2831.1,0.04]
[1749654660367,18.4475016,2831.2,2831.1,0.04]
[1749654660692,0.55,2830.7,2830.1,0.04]
[1749654660878,0.55,2830.5,2830.1,0.04]
[1749654661081,8.4475016,2830.2,2830.1,0.04]
[1749654661281,10.55,2830.2,2830.1,0.04]
[1749654661484,11.4791,2830.2,2830.1,0.04]
[1749654661680,13.53891655,2830.2,2830.1,0.04]
[1749654661885,13.90057573,2830.2,2830.1,0.04]
[1749654662309,18.04357573,2830.2,2830.1,0.04]
[1749654663227,0.55,2830.1,2829.1,0.04]
[1749654663426,10.0,2829.8,2829.1,0.04]
[1749654663631,10.55,2829.6,2829.1,0.04]
[1749654664006,10.55,2829.4,2829.1,0.04]
[1749654664233,0.9188,2829.5,2829.1,0.04]
[1749654664537,0.866,2829.9,2829.1,0.04]
[1749654664831,0.866,2830.4,2829.1,0.04]
[1749654665134,0.29399395,2830.3,2829.1,0.04]
[1749654665298,0.29399395,2830.3,2829.2,5.3867]
[1749654665490,1.40999335,2830.3,2829.2,5.92937]
[1749654665828,0.55,2830.2,2829.2,4.4848]
[1749654666031,10.84399395,2830.2,2829.2,4.4848]
[1749654666529,0.84399395,2830.2,2829.2,4.4848]
[1749654667619,0.55,2830.2,2829.2,4.4848]
[1749654667825,0.176,2829.2,2829.1,0.04]
[1749654671541,0.8958,2830.5,2829.2,5.4093]
[1749654671738,9.66906554,2830.4,2829.2,5.4093]
[1749654672039,9.66906554,2830.4,2829.2,4.4848]
[1749654672244,0.55,2830.2,2829.2,4.4848]
[1749654672404,0.55,2830.0,2829.2,4.4848]
[1749654673141,0.55,2830.0,2829.1,0.04]
[1749654673142,10.55,2829.8,2829.1,0.04]
[1749654673646,0.55,2829.6,2829.1,0.04]
[1749654674210,1.4724,2829.2,2829.1,0.04]
[1749654674404,17.64257952,2829.2,2829.1,0.04]
[1749654674609,10.55,2829.1,2828.1,0.04]
[1749654674854,0.55,2829.1,2828.1,0.04]
[1749654675436,10.55,2828.9,2828.1,0.04]
[1749654675637,0.55,2828.7,2828.1,0.04]
[1749654677014,0.55,2828.3,2828.1,0.04]
[1749654677222,10.55,2828.3,2828.1,0.04]
[1749654677434,1.4887,2828.2,2828.1,0.04]
[1749654677649,1.84578862,2828.2,2828.1,0.04]
[1749654677965,12.86567404,2828.2,2828.1,0.04]
[1749654678134,10.35708862,2828.2,2828.1,0.04]